{"text_format":"3","workbook":"xlsx","n_sheets":1,"sheets":["Ponuda"],"not_rendered":{"images":1,"defined_names":20},"read":"whole","date_system":"1900"}

{"sheet":"Ponuda","index":0,"n_rows":39,"n_cols":7,"rows_kept":39,"merged":[[0,1,3,1],[0,3,0,6],[1,4,1,6],[2,4,2,6],[32,3,35,4],[36,3,36,6],[37,3,37,5],[38,3,38,5]]}
[{"$nulls":3},"PONUDA ZA GRADNJU"]
[{"$nulls":3},"Naziv tvrtke","| U ovu ćeliju unesite adresu tvrtke"]
[{"$nulls":3},"Telefonski broj","| U ovu ćeliju unesite broj faksa tvrtke i adresu e-pošte za kontakt"]
[{"$nulls":3},"KOLIČINA","OPIS","JEDINIČNA CIJENA","IZNOS"]
[null,"KORISNIK",null,10,"Stavka 1",{"v":165,"d":"165.00 kn"},{"$f":"IFERROR(StavkeRedaka[[#This Row],[KOLIČINA]]*StavkeRedaka[[#This Row],[JEDINIČNA CIJENA]], \"\")","v":{"v":1650,"d":"1,650.00 kn"}}]
[null,"U ovu ćeliju unesite ime i prezime kupca",null,21,"Stavka 2",{"v":40,"d":"40.00 kn"},{"$f":"IFERROR(StavkeRedaka[[#This Row],[KOLIČINA]]*StavkeRedaka[[#This Row],[JEDINIČNA CIJENA]], \"\")","v":{"v":840,"d":"840.00 kn"}}]
[null,"BR. PROCJENE",null,5,"Artikl 3",{"v":10.5,"d":"10.50 kn"},{"$f":"IFERROR(StavkeRedaka[[#This Row],[KOLIČINA]]*StavkeRedaka[[#This Row],[JEDINIČNA CIJENA]], \"\")","v":{"v":52.5,"d":"52.50 kn"}}]
[null,"C-1234",null,164,"Artikl 4",{"v":2.75,"d":"2.75 kn"},{"$f":"IFERROR(StavkeRedaka[[#This Row],[KOLIČINA]]*StavkeRedaka[[#This Row],[JEDINIČNA CIJENA]], \"\")","v":{"v":451,"d":"451.00 kn"}}]
[null,"DATUM",null,6,"Stavka 5",{"v":12,"d":"12.00 kn"},{"$f":"IFERROR(StavkeRedaka[[#This Row],[KOLIČINA]]*StavkeRedaka[[#This Row],[JEDINIČNA CIJENA]], \"\")","v":{"v":72,"d":"72.00 kn"}}]
[null,{"$f":"TODAY()","v":"2018-11-15"},null,18,"Stavka 6",{"v":5.5,"d":"5.50 kn"},{"$f":"IFERROR(StavkeRedaka[[#This Row],[KOLIČINA]]*StavkeRedaka[[#This Row],[JEDINIČNA CIJENA]], \"\")","v":{"v":99,"d":"99.00 kn"}}]
[null,"ADRESA",null,1,"Stavka 7",{"v":25,"d":"25.00 kn"},{"$f":"IFERROR(StavkeRedaka[[#This Row],[KOLIČINA]]*StavkeRedaka[[#This Row],[JEDINIČNA CIJENA]], \"\")","v":{"v":25,"d":"25.00 kn"}}]
[null,"U ovu ćeliju unesite adresu kupca",{"$nulls":4},{"$f":"IFERROR(StavkeRedaka[[#This Row],[KOLIČINA]]*StavkeRedaka[[#This Row],[JEDINIČNA CIJENA]], \"\")","v":{"v":0,"d":"0.00 kn"}}]
[null,"POŠTANSKI BROJ/GRAD",{"$nulls":4},{"$f":"IFERROR(StavkeRedaka[[#This Row],[KOLIČINA]]*StavkeRedaka[[#This Row],[JEDINIČNA CIJENA]], \"\")","v":{"v":0,"d":"0.00 kn"}}]
[null,"U ovu ćeliju unesite poštanski broj i grad kupca",{"$nulls":4},{"$f":"IFERROR(StavkeRedaka[[#This Row],[KOLIČINA]]*StavkeRedaka[[#This Row],[JEDINIČNA CIJENA]], \"\")","v":{"v":0,"d":"0.00 kn"}}]
[null,"TELEFONSKI BROJ",{"$nulls":4},{"$f":"IFERROR(StavkeRedaka[[#This Row],[KOLIČINA]]*StavkeRedaka[[#This Row],[JEDINIČNA CIJENA]], \"\")","v":{"v":0,"d":"0.00 kn"}}]
[null,"U ovu ćeliju unesite telefonski broj kupca",{"$nulls":4},{"$f":"IFERROR(StavkeRedaka[[#This Row],[KOLIČINA]]*StavkeRedaka[[#This Row],[JEDINIČNA CIJENA]], \"\")","v":{"v":0,"d":"0.00 kn"}}]
[null,"ADRESA E-POŠTE",{"$nulls":4},{"$f":"IFERROR(StavkeRedaka[[#This Row],[KOLIČINA]]*StavkeRedaka[[#This Row],[JEDINIČNA CIJENA]], \"\")","v":{"v":0,"d":"0.00 kn"}}]
[null,"U ovu ćeliju unesite adresu e-pošte kupca",{"$nulls":4},{"$f":"IFERROR(StavkeRedaka[[#This Row],[KOLIČINA]]*StavkeRedaka[[#This Row],[JEDINIČNA CIJENA]], \"\")","v":{"v":0,"d":"0.00 kn"}}]
[null,"PRODAVAČ",{"$nulls":4},{"$f":"IFERROR(StavkeRedaka[[#This Row],[KOLIČINA]]*StavkeRedaka[[#This Row],[JEDINIČNA CIJENA]], \"\")","v":{"v":0,"d":"0.00 kn"}}]
[null,"U ovu ćeliju unesite ime i prezime prodavača",{"$nulls":4},{"$f":"IFERROR(StavkeRedaka[[#This Row],[KOLIČINA]]*StavkeRedaka[[#This Row],[JEDINIČNA CIJENA]], \"\")","v":{"v":0,"d":"0.00 kn"}}]
[null,"PROJEKT",{"$nulls":4},{"$f":"IFERROR(StavkeRedaka[[#This Row],[KOLIČINA]]*StavkeRedaka[[#This Row],[JEDINIČNA CIJENA]], \"\")","v":{"v":0,"d":"0.00 kn"}}]
[null,"U ovu ćeliju unesite naziv projekta",{"$nulls":4},{"$f":"IFERROR(StavkeRedaka[[#This Row],[KOLIČINA]]*StavkeRedaka[[#This Row],[JEDINIČNA CIJENA]], \"\")","v":{"v":0,"d":"0.00 kn"}}]
[null,"PRIPREMIO:",{"$nulls":4},{"$f":"IFERROR(StavkeRedaka[[#This Row],[KOLIČINA]]*StavkeRedaka[[#This Row],[JEDINIČNA CIJENA]], \"\")","v":{"v":0,"d":"0.00 kn"}}]
[null,"U ovu ćeliju unesite osobu koja je pripremila ponudu",{"$nulls":4},{"$f":"IFERROR(StavkeRedaka[[#This Row],[KOLIČINA]]*StavkeRedaka[[#This Row],[JEDINIČNA CIJENA]], \"\")","v":{"v":0,"d":"0.00 kn"}}]
[null,"N.R.",{"$nulls":4},{"$f":"IFERROR(StavkeRedaka[[#This Row],[KOLIČINA]]*StavkeRedaka[[#This Row],[JEDINIČNA CIJENA]], \"\")","v":{"v":0,"d":"0.00 kn"}}]
[null,"U ovu ćeliju unesite ime i prezime osobe kojoj se ponuda upućuje",{"$nulls":4},{"$f":"IFERROR(StavkeRedaka[[#This Row],[KOLIČINA]]*StavkeRedaka[[#This Row],[JEDINIČNA CIJENA]], \"\")","v":{"v":0,"d":"0.00 kn"}}]
[null,"UVJETI PLAĆANJA",{"$nulls":4},{"$f":"IFERROR(StavkeRedaka[[#This Row],[KOLIČINA]]*StavkeRedaka[[#This Row],[JEDINIČNA CIJENA]], \"\")","v":{"v":0,"d":"0.00 kn"}}]
[null,"Net 30",{"$nulls":4},{"$f":"IFERROR(StavkeRedaka[[#This Row],[KOLIČINA]]*StavkeRedaka[[#This Row],[JEDINIČNA CIJENA]], \"\")","v":{"v":0,"d":"0.00 kn"}}]
[null,"KRAJNJI ROK",{"$nulls":4},{"$f":"IFERROR(StavkeRedaka[[#This Row],[KOLIČINA]]*StavkeRedaka[[#This Row],[JEDINIČNA CIJENA]], \"\")","v":{"v":0,"d":"0.00 kn"}}]
[null,{"$f":"TODAY()+30","v":"2018-12-15"},{"$nulls":4},{"$f":"IFERROR(StavkeRedaka[[#This Row],[KOLIČINA]]*StavkeRedaka[[#This Row],[JEDINIČNA CIJENA]], \"\")","v":{"v":0,"d":"0.00 kn"}}]
[{"$nulls":5},"MEĐUIZNOS",{"$f":"SUBTOTAL(109,StavkeRedaka[IZNOS])","v":{"v":3189.5,"d":"3,189.50 kn"}}]
[{"$nulls":3},"OVA PONUDA UKLJUČUJE SLJEDEĆE UVJETE:",null,"POREZNA STOPA ",{"v":0.0775,"d":"7.75%"}]
[{"$nulls":3},"Ovdje unesite uvjete",null,"POREZ NA PROMET ",{"$f":"IFERROR(Međuiznos*PoreznaStopa, \"\")","v":{"v":247.18625,"d":"247.19 kn"}}]
[{"$nulls":5},"OSTALO "]
[{"$nulls":5},"ZBROJ",{"$f":"IFERROR(Međuiznos+G33+Ostalo, \"\")","v":{"v":3436.68625,"d":"3,436.69 kn"}}]
[]
[{"$nulls":3},"Potpišite se dolje da biste prihvatili ponudu:"]
[]
[{"$nulls":3},"Ovlašteni predstavnik",null,null,"Datum"]